[Event "55th Rubinstein Memorial-C 2019"]
[Site "Polanica-Zdroj"]
[Date "2019.08.24"]
[Round "8.9"]
[White "Burdzicki, Jan"]
[Black "Szczesniak, Andrzej"]
[Result "0-1"]
[ECO "D11"]
[WhiteElo "1716"]
[BlackElo "1954"]
[Annotator "NA"]
[PlyCount "66"]
[EventDate "2019.08.17"]
[EventType "swiss"]
[EventCountry "POL"]
[SourceTitle "playchess.com"]
[Source "ChessBase"]
[SourceQuality "1"]
[TimeControl "40/5400+30:1800+30"]

1. d4 {[%emt 0:04:44]} d5 {[%emt 0:01:19]} 2. c4 {[%emt 0:00:01]} c6 {[%emt 0:00:10]} 3. e3 {[%emt 0:00:07]} Nf6 {[%emt 0:00:24]} 4. Nf3 {[%emt 0:00:19]} a6 {[%emt 0:00:11]} 5. Nbd2 {[%emt 0:01:37]} Bf5 {[%emt 0:01:00]} 6. Qb3 {[%emt 0:01:00]} Qc7 {[%emt 0:00:27]} 7. Bd3 {[%emt 0:03:55]} Bg6 {[%emt 0:00:41]} 8. Ne5 {[%emt 0:01:09]} e6 {[%emt 0:01:13]} 9. Nxg6 {[%emt 0:12:17]} hxg6 {[%emt 0:00:40]} 10. Nf3 {[%emt 0:00:02]} Nbd7 $11 {[%emt 0:04:19]} 11. Bd2 {[%emt 0:03:04]} Ne4 {[%emt 0:11:08]} 12. cxd5 {[%emt 0:18:16]} exd5 {[%emt 0:11:04]} 13. Bxe4 {[%emt 0:03:00]} dxe4 {[%emt 0:00:05]} 14. Ng5 {[%emt 0:00:03]} Nf6 {[%emt 0:00:31]} 15. Qc2 {[%emt 0:07:51]} Rxh2 {[%emt 0:06:38]} 16. O-O {[%emt 0:17:39]} Rh5 {[%emt 0:07:24]} 17. f4 {[%emt 0:02:24]} exf3 {[%emt 0:00:18]} 18. Nxf3 {[%emt 0:00:03]} Bd6 {[%emt 0:00:22]} 19. e4 {[%emt 0:03:36]} Bh2+ {[%emt 0:03:41]} 20. Kh1 {[%emt 0:00:02]} Ng4 {[%emt 0:01:31]} 21. Bg5 {[%emt 0:03:16]} Bf4+ {[%emt 0:10:19]} 22. Bh4 {[%emt 0:00:12]} Bg3 {[%emt 0:03:23]} 23. e5 {[%emt 0:02:09]} Bxh4 {[%emt 0:02:12]} 24. Nxh4 {[%emt 0:00:42]} Rxh4+ {[%emt 0:00:14]} 25. Kg1 {[%emt 0:00:06]} O-O-O {[%emt 0:00:21]} 26. Qe4 {[%emt 0:00:24]} Qd7 {[%emt 0:00:44]} 27. Rf4 {[%emt 0:00:19]} f5 {[%emt 0:02:40]} 28. exf6 {[%emt 0:00:28]} Nxf6 {[%emt 0:00:05]} 29. Rxh4 {[%emt 0:01:03]} Nxe4 {[%emt 0:00:24]} 30. Rxe4 {[%emt 0:00:01]} Re8 {[%emt 0:00:22]} 31. Rae1 {[%emt 0:00:13]} Rxe4 {[%emt 0:00:12]} 32. Rxe4 Qd5 33. Rg4 {[%emt 0:00:17]} Qxa2 {[%emt 0:00:28]} 0-1

[Event "55th Rubinstein Memorial-C 2019"]
[Site "Polanica-Zdroj"]
[Date "2019.08.24"]
[Round "8.10"]
[White "Bartoszewicz, Marcin"]
[Black "Maslo, Slawomir"]
[Result "1-0"]
[ECO "B13"]
[WhiteElo "1950"]
[BlackElo "1687"]
[Annotator "NA"]
[PlyCount "111"]
[EventDate "2019.08.17"]
[EventType "swiss"]
[EventCountry "POL"]
[SourceTitle "playchess.com"]
[Source "ChessBase"]
[SourceQuality "1"]
[TimeControl "40/5400+30:1800+30"]

1. e4 {[%emt 0:00:00]} c6 {[%emt 0:00:00]} 2. d4 {[%emt 0:00:22]} d5 {[%emt 0:00:00]} 3. exd5 {[%emt 0:01:21]} cxd5 {[%emt 0:00:01]} 4. c4 {[%emt 0:01:15]} Nf6 {[%emt 0:00:27]} 5. Nc3 {[%emt 0:00:43]} Nc6 {[%emt 0:00:18]} 6. Nf3 {[%emt 0:02:37]} Bg4 {[%emt 0:00:27]} 7. cxd5 {[%emt 0:01:43]} Nxd5 {[%emt 0:00:25]} 8. Qb3 {[%emt 0:01:26]} Bxf3 {[%emt 0:02:32]} 9. gxf3 {[%emt 0:01:37]} e6 {[%emt 0:00:20]} 10. Qxb7 {[%emt 0:03:10]} Nxd4 {[%emt 0:00:39]} 11. Bb5+ {[%emt 0:00:58]} Nxb5 {[%emt 0:00:13]} 12. Qc6+ {[%emt 0:00:16]} Ke7 {[%emt 0:00:48]} 13. Qxb5 {[%emt 0:02:14]} Qd7 {[%emt 0:01:56]} 14. Nxd5+ {[%emt 0:10:33]} Qxd5 {[%emt 0:00:12]} 15. Qxd5 {[%emt 0:00:29]} exd5 {[%emt 0:00:07]} 16. O-O {[%emt 0:00:40]} Kf6 {[%emt 0:00:15]} 17. Rd1 {[%emt 0:00:26]} Rd8 {[%emt 0:01:02]} 18. Be3 {[%emt 0:00:15]} Rd7 {[%emt 0:00:14]} 19. Rac1 {[%emt 0:00:36]} Be7 {[%emt 0:06:05]} 20. Rd4 {[%emt 0:04:51]} g5 {[%emt 0:12:35]} 21. Ra4 {[%emt 0:02:24]} Kf5 {[%emt 0:15:11]} 22. Rxa7 {[%emt 0:04:50]} Rxa7 {[%emt 0:01:44]} 23. Bxa7 {[%emt 0:00:02]} Ra8 {[%emt 0:00:00]} 24. Rc7 {[%emt 0:00:38]} Ke6 {[%emt 0:04:08]} 25. a3 {[%emt 0:01:49]} Bd6 {[%emt 0:06:06]} 26. Rb7 {[%emt 0:00:50]} Be5 {[%emt 0:02:38]} 27. Bc5 {[%emt 0:05:18]} d4 {[%emt 0:06:56]} 28. h3 {[%emt 0:06:03]} Rd8 {[%emt 0:05:23]} 29. Kf1 {[%emt 0:00:46]} d3 {[%emt 0:03:53]} 30. Ke1 {[%emt 0:00:25]} f5 {[%emt 0:07:15]} 31. Kd2 {[%emt 0:03:54]} h5 {[%emt 0:06:01]} 32. Be3 {[%emt 0:04:26]} f4 {[%emt 0:01:03]} 33. Bc5 {[%emt 0:02:39]} Bf6 {[%emt 0:05:09]} 34. Rb6+ {[%emt 0:06:41]} Ke5 {[%emt 0:02:19]} 35. a4 {[%emt 0:01:37]} Bh8 {[%emt 0:00:31]} 36. Bb4 {[%emt 0:05:02]} Kd5 {[%emt 0:03:46]} 37. Kxd3 {[%emt 0:05:05]} Bxb2 {[%emt 0:01:06]} 38. Be7 {[%emt 0:00:22]} Rd7 {[%emt 0:00:07]} 39. Rxb2 {[%emt 0:00:16]} Rxe7 {[%emt 0:00:10]} 40. Rb5+ {[%emt 0:00:07]} Ke6 {[%emt 0:01:18]} 41. Rxg5 {[%emt 0:30:13]} h4 {[%emt 0:30:10]} 42. Ke4 {[%emt 0:01:29]} Rc7 {[%emt 0:00:22]} 43. Re5+ {[%emt 0:01:53]} Kd6 {[%emt 0:00:44]} 44. Kxf4 {[%emt 0:00:36]} Rc2 {[%emt 0:00:41]} 45. Re4 {[%emt 0:01:35]} Rxf2 {[%emt 0:00:10]} 46. Ke3 {[%emt 0:00:08]} Rb2 {[%emt 0:00:20]} 47. Rxh4 {[%emt 0:00:14]} Rb3+ {[%emt 0:00:11]} 48. Kf2 {[%emt 0:00:08]} Ke5 {[%emt 0:00:08]} 49. Rg4 {[%emt 0:01:04]} Kf5 {[%emt 0:00:13]} 50. h4 {[%emt 0:00:11]} Rb2+ {[%emt 0:00:18]} 51. Kg3 {[%emt 0:00:10]} Rb1 {[%emt 0:00:05]} 52. Rg5+ {[%emt 0:00:28]} Kf6 {[%emt 0:00:07]} 53. Ra5 {[%emt 0:00:17]} Rg1+ {[%emt 0:00:19]} 54. Kf4 {[%emt 0:00:06]} Rb1 {[%emt 0:00:02]} 55. Ra6+ {[%emt 0:00:11]} Kg7 {[%emt 0:00:11]} 56. h5 {[%emt 0:00:16]} 1-0

[Event "55th Rubinstein Memorial-C 2019"]
[Site "Polanica-Zdroj"]
[Date "2019.08.24"]
[Round "8.11"]
[White "Tokmantsev, Ivan"]
[Black "Bugaj, Hanna"]
[Result "1-0"]
[ECO "A16"]
[WhiteElo "1918"]
[BlackElo "1622"]
[Annotator "NA"]
[PlyCount "115"]
[EventDate "2019.08.17"]
[EventType "swiss"]
[EventCountry "POL"]
[SourceTitle "playchess.com"]
[Source "ChessBase"]
[SourceQuality "1"]
[TimeControl "40/5400+30:1800+30"]

1. c4 {[%emt 0:02:14]} Nf6 {[%emt 0:00:00]} 2. Nc3 {[%emt 0:00:12]} g6 {[%emt 0:00:00]} 3. e4 {[%emt 0:00:06]} e5 {[%emt 0:02:38]} 4. g3 {[%emt 0:01:13]} Bg7 {[%emt 0:00:45]} 5. Bg2 {[%emt 0:00:10]} d6 {[%emt 0:00:54]} 6. Nge2 {[%emt 0:00:14]} O-O {[%emt 0:03:13]} 7. O-O {[%emt 0:00:40]} c5 {[%emt 0:04:01]} 8. d3 {[%emt 0:00:37]} Nc6 {[%emt 0:01:10]} 9. h3 {[%emt 0:00:26]} Be6 {[%emt 0:03:23]} 10. Rb1 {[%emt 0:00:53]} Rb8 {[%emt 0:04:30]} 11. a3 {[%emt 0:02:22]} b6 {[%emt 0:03:18]} 12. b4 {[%emt 0:00:50]} Qd7 {[%emt 0:03:14]} 13. Kh2 $11 {[%emt 0:00:28]} Ne8 {[%emt 0:18:41]} 14. b5 {[%emt 0:01:02]} Nd4 {[%emt 0:00:41]} 15. Nxd4 {[%emt 0:01:06]} cxd4 {[%emt 0:00:18]} 16. Nd5 {[%emt 0:00:08]} Nc7 {[%emt 0:03:06]} 17. a4 {[%emt 0:00:18]} Rfc8 {[%emt 0:05:24]} 18. Ba3 {[%emt 0:01:31]} f6 {[%emt 0:03:40]} 19. Qb3 {[%emt 0:00:48]} Bf7 {[%emt 0:03:09]} 20. Rfc1 {[%emt 0:00:31]} Ne6 {[%emt 0:00:52]} 21. Nb4 {[%emt 0:02:05]} Nc5 {[%emt 0:00:37]} 22. Qd1 {[%emt 0:00:13]} Bh6 {[%emt 0:04:49]} 23. Nc6 {[%emt 0:02:24]} Rb7 {[%emt 0:05:40]} 24. Bxc5 {[%emt 0:02:32]} Bxc1 {[%emt 0:02:56]} 25. Bxb6 {[%emt 0:00:39]} axb6 {[%emt 0:00:51]} 26. Rxc1 {[%emt 0:00:20]} Ra8 {[%emt 0:01:08]} 27. Ra1 {[%emt 0:02:20]} Qc7 {[%emt 0:01:24]} 28. Bf3 {[%emt 0:03:34]} Be6 {[%emt 0:09:04]} 29. Qd2 {[%emt 0:04:18]} Kg7 {[%emt 0:03:20]} 30. Bd1 {[%emt 0:03:29]} Bd7 {[%emt 0:01:41]} 31. Nb4 {[%emt 0:00:17]} Qc8 {[%emt 0:01:57]} 32. h4 {[%emt 0:00:32]} Qf8 {[%emt 0:02:13]} 33. Bf3 {[%emt 0:00:44]} Be6 {[%emt 0:01:18]} 34. Kg1 {[%emt 0:06:31]} Rf7 {[%emt 0:01:33]} 35. Bg2 {[%emt 0:01:21]} h6 {[%emt 0:01:53]} 36. Na6 {[%emt 0:02:29]} g5 {[%emt 0:01:20]} 37. f4 {[%emt 0:19:45]} gxf4 {[%emt 0:02:03]} 38. gxf4 {[%emt 0:01:00]} Kh7 {[%emt 0:00:57]} 39. f5 {[%emt 0:00:10]} Bc8 {[%emt 0:00:19]} 40. Nb4 {[%emt 0:00:50]} Qg7 {[%emt 0:00:14]} 41. Nd5 {[%emt 0:32:18]} Rb8 {[%emt 0:31:24]} 42. Kh2 {[%emt 0:00:23]} Qg4 {[%emt 0:00:45]} 43. Qf2 {[%emt 0:00:05]} Bd7 {[%emt 0:00:13]} 44. Bf3 {[%emt 0:00:06]} Qg8 {[%emt 0:00:28]} 45. Bh5 {[%emt 0:00:08]} Rff8 {[%emt 0:00:44]} 46. Rg1 {[%emt 0:00:07]} Qh8 {[%emt 0:00:14]} 47. Bg6+ {[%emt 0:00:11]} Kg7 {[%emt 0:00:18]} 48. Be8+ {[%emt 0:00:04]} Kh7 {[%emt 0:00:16]} 49. Bg6+ {[%emt 0:00:21]} Kg7 {[%emt 0:00:07]} 50. Qg3 {[%emt 0:00:05]} Rg8 {[%emt 0:00:55]} 51. Be8+ {[%emt 0:00:11]} Kf8 {[%emt 0:00:27]} 52. Qxg8+ {[%emt 0:00:05]} Qxg8 {[%emt 0:00:05]} 53. Rxg8+ {[%emt 0:00:05]} Kxg8 {[%emt 0:00:12]} 54. Bxd7 {[%emt 0:00:05]} Kg7 {[%emt 0:00:54]} 55. Bc6 {[%emt 0:00:08]} Kf7 {[%emt 0:00:26]} 56. Nxb6 {[%emt 0:00:11]} Rxb6 {[%emt 0:00:08]} 57. a5 {[%emt 0:00:03]} Rb8 {[%emt 0:00:28]} 58. a6 {[%emt 0:00:03]} 1-0

[Event "55th Rubinstein Memorial-C 2019"]
[Site "Polanica-Zdroj"]
[Date "2019.08.24"]
[Round "8.12"]
[White "Budzisz, Adrian"]
[Black "Koscielny, Edmond"]
[Result "1-0"]
[ECO "A04"]
[WhiteElo "1631"]
[BlackElo "1841"]
[Annotator "NA"]
[PlyCount "62"]
[EventDate "2019.08.17"]
[EventType "swiss"]
[EventCountry "POL"]
[SourceTitle "playchess.com"]
[Source "ChessBase"]
[SourceQuality "1"]
[TimeControl "40/5400+30:1800+30"]

1. Nf3 {[%emt 0:00:00]} f5 {[%emt 0:00:00]} 2. d4 {[%emt 0:00:00]} d6 {[%emt 0:00:00]} 3. e3 {[%emt 0:00:00]} Nf6 {[%emt 0:00:04]} 4. Be2 {[%emt 0:00:35]} e6 {[%emt 0:00:24]} 5. O-O {[%emt 0:00:33]} Be7 {[%emt 0:00:18]} 6. c4 {[%emt 0:00:16]} O-O {[%emt 0:00:12]} 7. Nc3 {[%emt 0:00:13]} Qe8 {[%emt 0:06:01]} 8. b4 {[%emt 0:00:57]} c6 {[%emt 0:07:05]} 9. a4 {[%emt 0:05:12]} Ne4 {[%emt 0:01:13]} 10. Bb2 {[%emt 0:02:02]} Nd7 {[%emt 0:00:21]} 11. b5 {[%emt 0:05:58]} Ndf6 {[%emt 0:01:56]} 12. Na2 $11 {[%emt 0:00:57]} Bd7 {[%emt 0:04:33]} 13. Ne1 {[%emt 0:06:48]} a6 {[%emt 0:08:21]} 14. f3 {[%emt 0:02:17]} Ng5 {[%emt 0:00:07]} 15. Qb3 {[%emt 0:01:14]} Rb8 {[%emt 0:05:25]} 16. Nc3 {[%emt 0:02:01]} Qg6 {[%emt 0:04:53]} 17. Nd3 {[%emt 0:01:22]} Nh5 {[%emt 0:03:17]} 18. c5 {[%emt 0:07:53]} f4 {[%emt 0:06:39]} 19. Ne4 {[%emt 0:04:11]} Nxe4 {[%emt 0:02:30]} 20. fxe4 {[%emt 0:01:47]} fxe3 {[%emt 0:04:03]} 21. Ba3 {[%emt 0:06:54]} cxb5 {[%emt 0:08:18]} 22. cxd6 {[%emt 0:00:53]} bxa4 {[%emt 0:04:21]} 23. Bxh5 {[%emt 0:02:29]} Qxh5 {[%emt 0:01:51]} 24. dxe7 {[%emt 0:07:47]} Rf2 {[%emt 0:07:34]} 25. Qd1 {[%emt 0:01:54]} e2 {[%emt 0:06:15]} 26. Qxe2 {[%emt 0:00:15]} Qxe2 {[%emt 0:00:07]} 27. Rxf2 {[%emt 0:00:03]} Qe3 {[%emt 0:00:08]} 28. Re1 {[%emt 0:00:03]} Qxd4 {[%emt 0:00:33]} 29. Bc5 {[%emt 0:00:05]} Qxf2+ {[%emt 0:01:11]} 30. Nxf2 {[%emt 0:00:08]} b5 {[%emt 0:00:58]} 31. Rd1 {[%emt 0:00:08]} Kf7 1-0

[Event "55th Rubinstein Memorial-C 2019"]
[Site "Polanica-Zdroj"]
[Date "2019.08.24"]
[Round "8.13"]
[White "Ursnik, Patryk"]
[Black "Matuszczyk, Mateusz"]
[Result "0-1"]
[ECO "B22"]
[WhiteElo "1497"]
[BlackElo "1808"]
[Annotator "NA"]
[PlyCount "70"]
[EventDate "2019.08.17"]
[EventType "swiss"]
[EventCountry "POL"]
[SourceTitle "playchess.com"]
[Source "ChessBase"]
[SourceQuality "1"]
[TimeControl "40/5400+30:1800+30"]

1. e4 {[%emt 0:08:57]} c5 {[%emt 0:00:00]} 2. c3 {[%emt 0:00:12]} d5 {[%emt 0:00:56]} 3. exd5 {[%emt 0:00:08]} Qxd5 {[%emt 0:00:03]} 4. d4 {[%emt 0:00:10]} Nc6 {[%emt 0:00:29]} 5. Nf3 {[%emt 0:00:08]} Bg4 {[%emt 0:01:02]} 6. Be2 {[%emt 0:00:09]} cxd4 {[%emt 0:06:19]} 7. cxd4 {[%emt 0:00:12]} e6 {[%emt 0:00:31]} 8. O-O {[%emt 0:00:10]} Nf6 {[%emt 0:01:21]} 9. h3 {[%emt 0:00:11]} Bxf3 {[%emt 0:02:57]} 10. Bxf3 {[%emt 0:00:17]} Qd7 {[%emt 0:00:02]} 11. Be3 {[%emt 0:00:56]} Be7 {[%emt 0:00:41]} 12. Nc3 {[%emt 0:00:20]} Rd8 $11 {[%emt 0:02:29]} 13. Qb3 {[%emt 0:05:30]} O-O {[%emt 0:05:05]} 14. Rfd1 {[%emt 0:00:08]} Nd5 {[%emt 0:03:18]} 15. Nxd5 {[%emt 0:00:17]} exd5 {[%emt 0:00:02]} 16. a3 {[%emt 0:06:49]} f5 {[%emt 0:02:00]} 17. Bf4 {[%emt 0:01:38]} g5 {[%emt 0:06:56]} 18. Be5 {[%emt 0:00:58]} g4 {[%emt 0:00:22]} 19. hxg4 {[%emt 0:00:07]} fxg4 {[%emt 0:00:01]} 20. Be2 {[%emt 0:04:18]} Nxe5 {[%emt 0:06:30]} 21. dxe5 {[%emt 0:00:08]} Bc5 {[%emt 0:02:15]} 22. Rf1 {[%emt 0:01:59]} Qf5 {[%emt 0:05:43]} 23. Qg3 {[%emt 0:00:09]} h5 {[%emt 0:00:15]} 24. Bd3 {[%emt 0:00:18]} Qg5 {[%emt 0:01:05]} 25. e6 {[%emt 0:06:43]} Rf4 {[%emt 0:10:24]} 26. Rac1 {[%emt 0:16:50]} h4 {[%emt 0:00:51]} 27. Bh7+ {[%emt 0:00:21]} Kh8 {[%emt 0:20:51]} 28. Qd3 {[%emt 0:02:48]} Bd6 {[%emt 0:06:11]} 29. Qg6 {[%emt 0:01:39]} Qe5 {[%emt 0:00:16]} 30. Rce1 {[%emt 0:01:13]} Re4 {[%emt 0:00:42]} 31. f4 {[%emt 0:00:49]} gxf3 {[%emt 0:00:43]} 32. Rxe4 {[%emt 0:00:38]} dxe4 {[%emt 0:02:22]} 33. e7 {[%emt 0:03:45]} Rc8 {[%emt 0:01:28]} 34. Qxe4 {[%emt 0:01:50]} Qh2+ {[%emt 0:00:43]} 35. Kf2 {[%emt 0:00:50]} Qg3+ {[%emt 0:04:47]} 0-1

[Event "55th Rubinstein Memorial-C 2019"]
[Site "Polanica-Zdroj"]
[Date "2019.08.24"]
[Round "8.14"]
[White "Szydelko, Michal"]
[Black "Wrona, Florian"]
[Result "1-0"]
[ECO "B23"]
[WhiteElo "1752"]
[BlackElo "1606"]
[Annotator "NA"]
[PlyCount "45"]
[EventDate "2019.08.17"]
[EventType "swiss"]
[EventCountry "POL"]
[SourceTitle "playchess.com"]
[Source "ChessBase"]
[SourceQuality "1"]
[TimeControl "40/5400+30:1800+30"]

1. e4 {[%emt 0:00:00]} c5 {[%emt 0:00:00]} 2. Nc3 {[%emt 0:00:33]} d6 {[%emt 0:00:00]} 3. g3 {[%emt 0:00:09]} Nf6 {[%emt 0:00:33]} 4. Bg2 {[%emt 0:00:11]} e5 {[%emt 0:00:12]} 5. Nge2 {[%emt 0:00:21]} Be7 {[%emt 0:00:39]} 6. O-O {[%emt 0:00:09]} O-O {[%emt 0:01:26]} 7. d3 {[%emt 0:04:17]} Nc6 {[%emt 0:02:43]} 8. f4 {[%emt 0:03:18]} exf4 {[%emt 0:02:11]} 9. gxf4 {[%emt 0:05:20]} Bg4 {[%emt 0:05:15]} 10. Qe1 {[%emt 0:01:51]} Nh5 {[%emt 0:02:44]} 11. Be3 {[%emt 0:00:50]} f5 {[%emt 0:07:37]} 12. Qd2 {[%emt 0:05:57]} Rb8 {[%emt 0:19:23]} 13. Nd5 {[%emt 0:04:20]} g6 {[%emt 0:06:17]} 14. Nec3 {[%emt 0:02:44]} Nf6 {[%emt 0:01:48]} 15. Rae1 {[%emt 0:12:56]} Re8 {[%emt 0:04:44]} 16. Bf2 {[%emt 0:05:37]} Nxd5 {[%emt 0:05:38]} 17. Nxd5 {[%emt 0:03:37]} Bf6 {[%emt 0:03:18]} 18. c3 {[%emt 0:01:31]} Rc8 {[%emt 0:16:56]} 19. exf5 {[%emt 0:04:45]} Rxe1 {[%emt 0:00:22]} 20. Rxe1 {[%emt 0:00:01]} Bxf5 {[%emt 0:00:10]} 21. Re8+ {[%emt 0:00:20]} Qxe8 {[%emt 0:01:10]} 22. Nxf6+ {[%emt 0:00:03]} Kf7 {[%emt 0:00:13]} 23. Nxe8 {[%emt 0:00:04]} 1-0

[Event "55th Rubinstein Memorial-C 2019"]
[Site "Polanica-Zdroj"]
[Date "2019.08.24"]
[Round "8.15"]
[White "Gajzner, Ryszard"]
[Black "Myrmus, Mateusz"]
[Result "1/2-1/2"]
[ECO "D30"]
[WhiteElo "1740"]
[BlackElo "1598"]
[Annotator "NA"]
[PlyCount "148"]
[EventDate "2019.08.17"]
[EventType "swiss"]
[EventCountry "POL"]
[SourceTitle "playchess.com"]
[Source "ChessBase"]
[SourceQuality "1"]
[TimeControl "40/5400+30:1800+30"]

1. d4 {[%emt 0:00:00]} d5 {[%emt 0:00:00]} 2. c4 {[%emt 0:00:00]} e6 {[%emt 0:00:00]} 3. Nf3 {[%emt 0:00:13]} c5 {[%emt 0:00:29]} 4. cxd5 {[%emt 0:00:21]} exd5 {[%emt 0:00:06]} 5. g3 {[%emt 0:00:13]} Nf6 {[%emt 0:00:47]} 6. Bg2 {[%emt 0:00:07]} c4 {[%emt 0:00:05]} 7. O-O {[%emt 0:00:28]} Be7 {[%emt 0:00:06]} 8. b3 {[%emt 0:03:43]} cxb3 {[%emt 0:32:40]} 9. axb3 {[%emt 0:09:18]} O-O {[%emt 0:00:32]} 10. Nc3 {[%emt 0:02:58]} Nc6 {[%emt 0:00:05]} 11. Ne5 {[%emt 0:10:49]} Be6 {[%emt 0:01:12]} 12. Nxc6 {[%emt 0:04:30]} bxc6 {[%emt 0:00:02]} 13. Ba3 {[%emt 0:00:09]} Bxa3 {[%emt 0:03:54]} 14. Rxa3 {[%emt 0:00:06]} Qb6 {[%emt 0:00:19]} 15. Na4 {[%emt 0:01:48]} Qb4 {[%emt 0:00:17]} 16. Qa1 {[%emt 0:00:38]} Nd7 {[%emt 0:01:18]} 17. Rc1 {[%emt 0:01:11]} Rfc8 {[%emt 0:01:56]} 18. Nc5 {[%emt 0:02:20]} Nxc5 {[%emt 0:04:09]} 19. Rxc5 {[%emt 0:00:28]} a5 {[%emt 0:00:58]} 20. e3 {[%emt 0:01:08]} Bd7 {[%emt 0:01:56]} 21. Bf1 {[%emt 0:01:33]} Ra7 {[%emt 0:00:47]} 22. Bd3 {[%emt 0:04:02]} Rca8 {[%emt 0:00:12]} 23. Bc2 {[%emt 0:05:45]} Qd2 {[%emt 0:03:02]} 24. Ra2 {[%emt 0:00:07]} Qb4 {[%emt 0:00:13]} 25. Ra4 {[%emt 0:03:16]} Qd2 {[%emt 0:02:25]} 26. Qd1 {[%emt 0:00:21]} Qxd1+ {[%emt 0:00:42]} 27. Bxd1 {[%emt 0:00:05]} Kf8 {[%emt 0:02:42]} 28. f3 {[%emt 0:02:11]} Ke7 {[%emt 0:01:40]} 29. e4 {[%emt 0:00:47]} Kd6 {[%emt 0:00:48]} 30. Ra1 {[%emt 0:07:10]} f6 {[%emt 0:00:20]} 31. Kf2 {[%emt 0:01:20]} Re8 {[%emt 0:06:15]} 32. exd5 {[%emt 0:01:13]} cxd5 {[%emt 0:00:54]} 33. Raxa5 {[%emt 0:00:52]} Rxa5 {[%emt 0:00:29]} 34. Rxa5 {[%emt 0:00:16]} Rb8 {[%emt 0:00:40]} 35. Ra6+ {[%emt 0:01:44]} Bc6 {[%emt 0:00:16]} 36. Ke3 {[%emt 0:02:33]} Re8+ {[%emt 0:00:45]} 37. Kd2 {[%emt 0:00:23]} Kc7 {[%emt 0:03:30]} 38. Bc2 {[%emt 0:01:28]} Bb7 {[%emt 0:02:12]} 39. Ra5 {[%emt 0:00:31]} Kb6 {[%emt 0:01:00]} 40. Rc5 {[%emt 0:00:21]} h6 {[%emt 0:00:31]} 41. b4 {[%emt 0:32:46]} Ra8 {[%emt 0:32:59]} 42. Bb3 {[%emt 0:01:44]} Rd8 {[%emt 0:00:27]} 43. Ke3 {[%emt 0:00:42]} g5 {[%emt 0:00:47]} 44. Kd2 {[%emt 0:09:06]} Bc6 {[%emt 0:05:06]} 45. b5 {[%emt 0:03:02]} Bb7 {[%emt 0:02:24]} 46. Bc2 {[%emt 0:02:03]} Ra8 {[%emt 0:00:56]} 47. Ke3 {[%emt 0:01:20]} Ra3+ {[%emt 0:00:35]} 48. Bd3 {[%emt 0:03:31]} Ra2 {[%emt 0:00:31]} 49. Be2 {[%emt 0:00:30]} Ra3+ {[%emt 0:00:12]} 50. Kd2 {[%emt 0:00:55]} Ra4 {[%emt 0:00:36]} 51. Kc3 {[%emt 0:01:05]} Ra2 {[%emt 0:00:14]} 52. Kd3 {[%emt 0:00:59]} Ra1 {[%emt 0:00:20]} 53. f4 {[%emt 0:02:15]} Rh1 {[%emt 0:03:42]} 54. fxg5 {[%emt 0:00:15]} fxg5 {[%emt 0:00:28]} 55. h4 {[%emt 0:02:23]} gxh4 {[%emt 0:00:14]} 56. gxh4 {[%emt 0:00:06]} Rh3+ {[%emt 0:00:21]} 57. Kd2 {[%emt 0:01:48]} Rxh4 {[%emt 0:00:04]} 58. Ke3 {[%emt 0:00:17]} Rh3+ {[%emt 0:00:38]} 59. Bf3 {[%emt 0:00:24]} h5 {[%emt 0:00:54]} 60. Kf4 {[%emt 0:00:47]} h4 {[%emt 0:03:32]} 61. Bxd5 {[%emt 0:01:05]} Bxd5 {[%emt 0:00:14]} 62. Rxd5 {[%emt 0:00:05]} Rh1 {[%emt 0:00:09]} 63. Rh5 {[%emt 0:02:21]} h3 {[%emt 0:00:11]} 64. Kg3 {[%emt 0:02:17]} Rd1 {[%emt 0:00:38]} 65. Rd5 {[%emt 0:01:23]} Rd3+ {[%emt 0:00:13]} 66. Kh2 {[%emt 0:00:13]} Rb3 {[%emt 0:00:16]} 67. Rh5 {[%emt 0:00:18]} Rxb5 {[%emt 0:00:18]} 68. Rxh3 {[%emt 0:00:20]} Rg5 {[%emt 0:00:11]} 69. Rc3 {[%emt 0:00:21]} Rg4 {[%emt 0:00:22]} 70. Rd3 {[%emt 0:00:37]} Kc6 {[%emt 0:00:09]} 71. Kh3 {[%emt 0:00:13]} Rg8 {[%emt 0:00:12]} 72. Kh4 {[%emt 0:00:06]} Kd5 {[%emt 0:00:06]} 73. Kh5 {[%emt 0:00:06]} Rg1 {[%emt 0:00:07]} 74. Kh4 {[%emt 0:00:04]} Rg8 1/2-1/2

[Event "55th Rubinstein Memorial-C 2019"]
[Site "Polanica-Zdroj"]
[Date "2019.08.24"]
[Round "8.16"]
[White "Rylski, Tadeusz"]
[Black "Zgoda, Damian"]
[Result "1-0"]
[ECO "A40"]
[WhiteElo "1616"]
[BlackElo "1725"]
[Annotator "NA"]
[PlyCount "72"]
[EventDate "2019.08.17"]
[EventType "swiss"]
[EventCountry "POL"]
[SourceTitle "playchess.com"]
[Source "ChessBase"]
[SourceQuality "1"]
[TimeControl "40/5400+30:1800+30"]

1. d4 {[%emt 0:00:00]} g6 {[%emt 0:00:00]} 2. c4 {[%emt 0:00:00]} Bg7 {[%emt 0:00:00]} 3. Nf3 {[%emt 0:00:00]} d6 {[%emt 0:00:16]} 4. g3 {[%emt 0:00:02]} Nd7 {[%emt 0:01:47]} 5. Bg2 {[%emt 0:00:20]} e5 {[%emt 0:04:34]} 6. Nc3 {[%emt 0:03:16]} Ne7 {[%emt 0:05:11]} 7. e4 {[%emt 0:01:52]} O-O {[%emt 0:01:07]} 8. Be3 {[%emt 0:01:32]} c6 {[%emt 0:01:35]} 9. O-O {[%emt 0:02:29]} f5 {[%emt 0:06:51]} 10. Qc2 {[%emt 0:02:11]} h6 {[%emt 0:09:36]} 11. Rad1 {[%emt 0:01:04]} f4 {[%emt 0:02:56]} 12. Bc1 {[%emt 0:03:32]} g5 {[%emt 0:05:49]} 13. c5 {[%emt 0:08:33]} dxc5 {[%emt 0:12:38]} 14. dxe5 {[%emt 0:03:46]} g4 {[%emt 0:02:42]} 15. e6 {[%emt 0:07:21]} gxf3 {[%emt 0:02:29]} 16. Bh3 {[%emt 0:02:14]} fxg3 {[%emt 0:04:24]} 17. exd7 {[%emt 0:08:38]} gxh2+ {[%emt 0:05:31]} 18. Kxh2 {[%emt 0:03:15]} Nd5 {[%emt 0:06:40]} 19. exd5 {[%emt 0:17:22]} Bxd7 {[%emt 0:01:29]} 20. Qg6 {[%emt 0:03:35]} Qh4 {[%emt 0:03:34]} 21. Qg3 {[%emt 0:01:33]} Qh5 {[%emt 0:00:31]} 22. Rg1 {[%emt 0:01:54]} Rf7 {[%emt 0:00:56]} 23. dxc6 {[%emt 0:08:22]} Bxc6 {[%emt 0:03:34]} 24. Rde1 {[%emt 0:05:40]} Kh8 {[%emt 0:01:12]} 25. Qg4 {[%emt 0:01:19]} Qxg4 {[%emt 0:07:10]} 26. Bxg4 {[%emt 0:00:30]} Rd8 {[%emt 0:02:40]} 27. Be3 {[%emt 0:01:42]} Be5+ {[%emt 0:02:31]} 28. Kh3 {[%emt 0:01:12]} h5 {[%emt 0:01:38]} 29. Be6 {[%emt 0:02:09]} Rh7 {[%emt 0:03:45]} 30. Bg5 {[%emt 0:01:11]} Re8 {[%emt 0:00:24]} 31. Rxe5 {[%emt 0:00:31]} Rxe6 {[%emt 0:00:08]} 32. Rxe6 {[%emt 0:00:12]} Bd7 {[%emt 0:00:11]} 33. Bf6+ {[%emt 0:00:12]} Rg7 {[%emt 0:00:09]} 34. Bxg7+ {[%emt 0:00:05]} Kh7 {[%emt 0:00:09]} 35. Rge1 {[%emt 0:00:24]} Kxg7 {[%emt 0:00:08]} 36. Kh4 {[%emt 0:00:06]} Bc6 1-0